Cogmind - Beta 14 *** ADVENTURER MODE // 2024.08.10 @ 11:11:48 Player: cd-rom Result: Destroyed by B-75 Beast with Magnetic Acceleration Cannon Performance ------------- Evolutions (4) 2000 Regions Visited (9) 1800 Robots Destroyed (77) 385 Value Destroyed (2646) 2646 Prototype IDs (5) 100 Alien Tech Used (0) 0 Bonus (0) 0 TOTAL SCORE: 6931 Bonus ------- None Cogmind --------- Core Integrity 0/850 Matter 53/300 Energy 72/100 System Corruption 0% Temperature Critical (720) Movement Core (50) Location -6/Extension Parts ------- > --- POWER (2) -------- (None) > --- PROPULSION (4) --- Armored Wheel > --- UTILITY (5) ------ Improved Signal Interpreter Improved Targeting Computer > --- WEAPON (4) ------- (None) > --- INVENTORY (5) ---- High-capacity Matter Pod (200) Enhanced Optical Array Terrain Scan Processor Seismic Detector Core Shielding Peak State ------------ > --- POWER ------------ Deuterium Engine Improved Deuterium Engine > --- PROPULSION ------- Carbon-fiber Leg Carbon-fiber Leg Improved Carbon-fiber Leg Flexi-carbon Leg > --- UTILITY ---------- Huge Storage Unit Advanced Weight Redist. System Improved Signal Interpreter Improved Targeting Computer Hardened Medium Armor Plating > --- WEAPON ----------- Proton Cannon Heavy Ion Cannon Minigun Gauss Rifle > --- INVENTORY -------- Deuterium Engine Armored Wheel Armored Wheel Improved Heat Sink High-capacity Matter Pod Advanced Weight Redist. System Structural Scanner Machine Analyzer Advanced Visual Processing Unit Enhanced Optical Array Sensor Array Improved Terrain Scanner Advanced Terrain Scanner Terrain Scan Processor Seismic Detector Particle Charger Core Shielding Hardened Medium Armor Plating System Guard Pulse Rifle Particle Cannon High-powered Shotgun Grenade Launcher Scythe [Rating: 56] Favorites ----------- Power Ion Engine Engine Ion Engine Power Core Light Nuclear Core Propulsion Armored Wheel Treads Light Treads Leg Aluminum Leg Wheel Armored Wheel Hover Unit Hover Unit Flight Unit VTOL Module Utility Huge Storage Unit Device Structural Scanner Storage Huge Storage Unit Processor Signal Interpreter Protection Core Shielding Weapon Light Assault Rifle Energy Gun Shock Rifle Energy Cannon Particle Cannon Ballistic Gun Light Assault Rifle Ballistic Cannon Flak Cannon Launcher Grenade Launcher Impact Weapon Hammer Build | -11 -10 -9 -9 -9 -8 -8 -7 -6 -6 ------- Run | Yrd Mat Mat Min Exi Min Mat Fac Fac Ext Slots Evolved 8 | . . 2 . . . 2 2 2 . Power 1 | . . 1 . . . . . . . Propulsion 2 | . . . . . . . 1 1 . Utility 3 | . . 1 . . . 1 1 . . Weapon 2 | . . . . . . 1 . 1 . Parts Attached 100 | 5 15 34 1 . . 23 6 6 10 Power 15 | 1 3 4 . . . 5 1 . 1 Engine 14 | 1 3 4 . . . 4 1 . 1 Core 1 | . . . . . . 1 . . . Reactor . | . . . . . . . . . . Propulsion 33 | 2 3 18 . . . 2 1 4 3 Treads 2 | . . 2 . . . . . . . Leg 14 | 2 . 8 . . . . . 4 . Wheel 11 | . 3 2 . . . 2 1 . 3 Hover 3 | . . 3 . . . . . . . Flight 3 | . . 3 . . . . . . . Utility 21 | . 3 7 1 . . 7 1 1 1 Device 6 | . . 3 1 . . 1 1 . . Storage 2 | . 2 . . . . . . . . Processor 6 | . 1 . . . . 4 . 1 . Hackware . | . . . . . . . . . . Protection 7 | . . 4 . . . 2 . . 1 Artifact . | . . . . . . . . . . Weapon 31 | 2 6 5 . . . 9 3 1 5 Energy Gun 10 | 2 3 1 . . . 2 1 . 1 Energy Cannon 7 | . . 1 . . . 3 1 . 2 Ballistic Gun 8 | . 1 2 . . . 2 1 1 1 Ballistic Cannon 1 | . . . . . . 1 . . . Launcher 4 | . 2 . . . . 1 . . 1 Special Weapon . | . . . . . . . . . . Impact Weapon 1 | . . 1 . . . . . . . Slashing Weapon . | . . . . . . . . . . Piercing Weapon . | . . . . . . . . . . Special Melee Weapon . | . . . . . . . . . . Unidentified Prototypes . | . . . . . . . . . . Parts Lost 30 | . 5 6 . . . 2 . . 17 Power 8 | . 1 2 . . . 2 . . 3 Propulsion 6 | . 1 2 . . . . . . 3 Utility 5 | . . 1 . . . . . . 4 Weapon 11 | . 3 1 . . . . . . 7 Highest Loss Streak 16 | . 3 4 . . . 1 . . 16 To Critical Strikes 1 | . . 1 . . . . . . . Average Slot Usage (%) 92 | . 93 88 88 88 88 98 99 96 93 Engine 13 | . 12 12 11 11 11 16 15 13 12 Leg 3 | . 6 3 . . . . . 14 23 Wheel 12 | . 21 4 22 22 22 18 23 9 . Flight 5 | . . 12 . . . . . . . Device 3 | . . 3 6 11 11 1 6 6 5 Storage 10 | . 13 11 11 11 11 9 7 6 5 Processor 11 | . 10 11 4 . . 16 15 13 13 Protection 7 | . . 7 11 11 11 9 7 6 5 Energy Gun 6 | . 19 2 11 11 11 7 4 . 1 Energy Cannon 6 | . . 6 11 11 11 7 . 6 6 Ballistic Gun 9 | . 5 12 . . . 5 14 19 15 Peak Build Rating 56 | 5 9 17 17 17 17 33 40 54 56 Average Rating 20 | 3 7 13 16 17 17 29 38 49 50 On Entrance 20 | . 5 8 17 17 17 17 33 40 54 Naked Turns . | . . . . . . . . . . Heaviest Build 130 | 7 91 95 94 94 94 118 121 125 130 Greatest Support 77 | 20 26 24 24 24 24 24 45 77 77 Greatest Overweight (x) 30 | . 8 30 3 3 3 4 2 2 6 Average Overweight (x) 3 | . 2 5 3 3 3 3 2 1 1 Largest Inventory Capacity 25 | 5 25 25 25 25 25 25 25 25 25 Average Capacity 24 | 5 20 25 25 25 25 25 25 25 24 Most Carried 25 | 5 18 25 25 23 25 25 22 25 24 Average Carried 20 | 2 12 19 23 23 24 23 19 23 22 Final Capacity 25 | 5 25 25 25 25 25 25 25 25 5 Final Carried 25 | 3 18 24 23 23 25 23 21 25 5 Class Distribution -------------------- 63% | Mutant 17% | Gunner 13% | Tank 5% | Scavenger-Mutant Dominant Class ---------------- Mutant | -10/Materials Mutant | -9/Materials Mutant | -9/Mines Mutant | -9/Exiles Mutant | -8/Mines Tank | -8/Materials Gunner | -7/Factory Gunner | -6/Factory Gunner | -6/Extension Resources | -11 -10 -9 -9 -9 -8 -8 -7 -6 -6 ----------- Run | Yrd Mat Mat Min Exi Min Mat Fac Fac Ext Matter Collected 2000 | 250 289 504 10 . . 433 55 408 51 Remotely . | . . . . . . . . . . Salvage Created 3017 | 48 347 425 . . 72 1119 150 366 490 Parts 163 | . 20 29 . . 8 44 10 24 28 Haulers Intercepted . | . . . . . . . . . . Recyclers Shooed 3 | . 1 . . . . 1 . . 1 Parts Field Recycled . | . . . . . . . . . . Retrieved Matter . | . . . . . . . . . . Parts Self-Destructed . | . . . . . . . . . . Prevented . | . . . . . . . . . . Kills | -11 -10 -9 -9 -9 -8 -8 -7 -6 -6 ------- Run | Yrd Mat Mat Min Exi Min Mat Fac Fac Ext Combat Hostiles Destroyed 60 | 1 13 10 . . 4 20 3 3 6 Guns 36 | . 12 8 . . 2 8 1 2 3 Cannons 19 | . . 2 . . 2 11 2 1 1 AOE 4 | . 1 . . . . 1 . . 2 Classes Destroyed 12 | 1 2 2 . . . 1 1 2 3 Worker 1 | . . . . . . . . 1 . Builder 2 | . . . . . . . . . 2 Tunneler 1 | . . . . . . . . . 1 Recycler 2 | . . . . . . . . 1 1 Watcher 11 | . 2 1 . . . 3 . 3 2 Swarmer 13 | . 6 3 . . 4 . . . . Grunt 25 | 1 7 2 . . . 12 . . 3 Brawler 1 | . . 1 . . . . . . . Sentry 16 | . . 4 . . . 7 2 1 2 Hunter 2 | . . . . . . 1 . 1 . Programmer 2 | . . . . . . . 1 1 . Behemoth 1 | . . . . . . . . . 1 Best Kill Streak 7 | 1 3 3 . . 4 3 1 3 7 Combat Bots Only 4 | 1 3 3 . . 4 3 1 1 3 Max Kills in Single Turn 3 | 1 2 1 . . 1 1 1 1 3 Gunslinging 1 | . 1 . . . . . . . . Exploded 2 | . 1 . . . . 1 . . 2 Melee . | . . . . . . . . . . Uniques/NPCs Destroyed . | . . . . . . . . . . Combat | -11 -10 -9 -9 -9 -8 -8 -7 -6 -6 -------- Run | Yrd Mat Mat Min Exi Min Mat Fac Fac Ext Hostile Shots Fired 673 | 6 118 129 . . 12 64 32 32 280 Missed 163 | 2 31 26 . . 3 15 15 12 59 Damage Taken 5392 | 34 731 949 . . 55 603 104 160 2756 Core 1320 | . 158 228 . . . 71 8 10 845 Absorbed by Shields . | . . . . . . . . . . Redirected to Shielding 25 | . . 15 . . . 10 . . . Ignored by Resistances 1486 | 12 239 283 . . 18 168 33 53 680 Regen/Repaired (Parts) 37 | . 37 . . . . . . . . Core Remaining (%) 72 | 100 36 . . . 43 87 98 . . Volleys Fired 211 | 6 52 54 . . 6 43 11 19 20 Largest 4 | 1 2 2 . . 2 3 3 4 4 Hottest 193 | 50 90 88 . . 118 157 119 143 193 Shots Fired 486 | 6 85 99 . . 12 121 25 74 64 Gun 346 | 6 79 86 . . 6 58 20 55 36 Cannon 127 | . . 13 . . 6 59 5 19 25 Launcher 13 | . 6 . . . . 4 . . 3 Special . | . . . . . . . . . . Kinetic 240 | . 21 77 . . . 37 19 55 31 Thermal 133 | 6 48 22 . . 6 . 5 19 27 Explosive 13 | . 6 . . . . 4 . . 3 Electromagnetic 100 | . 10 . . . 6 80 1 . 3 Robot Hit Streak 25 | 6 14 17 . . 18 12 17 9 25 Robot Miss Streak 5 | . 2 5 . . 2 4 4 3 3 Penetration Max . | . . . . . . . . . . Secondary Targets 3 | . 1 2 . . . . . . . Max Gunslinging Chain 1 | . 1 1 . . . . . . . Shots Hit Robots 331 | 6 53 73 . . 7 83 18 44 47 Core Hits 178 | 1 26 23 . . 4 58 14 18 34 Critical Kills 1 | . . . . . . . . 1 . Critical Parts Destroyed 1 | . . . . . . . . 1 . Critical Strikes 6 | 1 1 . . . . 1 . 2 1 Burn 3 | 1 1 . . . . . . . 1 Destroy 2 | . . . . . . . . 2 . Corrupt 1 | . . . . . . 1 . . . Melee Attacks . | . . . . . . . . . . Impact . | . . . . . . . . . . Slashing . | . . . . . . . . . . Piercing . | . . . . . . . . . . Sneak Attacks . | . . . . . . . . . . Combat Hostiles . | . . . . . . . . . . Follow-up Attacks . | . . . . . . . . . . Damage Inflicted 6926 | 75 902 757 . . 160 2126 375 853 1678 Guns 3322 | 75 551 490 . . 57 709 255 628 557 Cannons 2538 | . . 267 . . 103 1257 120 225 566 Explosions 1066 | . 351 . . . . 160 . . 555 Melee . | . . . . . . . . . . Ramming . | . . . . . . . . . . Kinetic 2536 | . 132 393 . . . 610 284 628 489 Thermal 1735 | 75 329 364 . . 103 . 63 225 576 Explosive 1066 | . 351 . . . . 160 . . 555 Electromagnetic 1589 | . 90 . . . 57 1356 28 . 58 Impact . | . . . . . . . . . . Slashing . | . . . . . . . . . . Piercing . | . . . . . . . . . . Highest Corruption 1 | . . . . . . 1 . . . Average Corruption 1 | . . . . . . 1 . . . Corruption Purged . | . . . . . . . . . . Corruption Blocked . | . . . . . . . . . . Effects 15 | . . . . . . 15 . . . Message Errors 4 | . . . . . . 4 . . . Matter Fused 3 | . . . . . . 3 . . . Energy Discharges 3 | . . . . . . 3 . . . Parts Rejected 1 | . . . . . . 1 . . . Data Loss (minor) 3 | . . . . . . 3 . . . Data Loss (major) 1 | . . . . . . 1 . . . Overload Shots . | . . . . . . . . . . Overflow Damage 53 | . . . . . 1 39 . 13 . Projectiles 53 | . . . . . 1 39 . 13 . Explosions . | . . . . . . . . . . Melee . | . . . . . . . . . . Knockbacks 8 | . . . . . . 8 . . . Impact . | . . . . . . . . . . Kinetic 8 | . . . . . . 8 . . . Secondary . | . . . . . . . . . . Self-Inflicted Damage 33 | . 17 . . . . 16 . . . Shots 2 | . 1 . . . . 1 . . . Rammed . | . . . . . . . . . . Targets Rammed . | . . . . . . . . . . Kicked . | . . . . . . . . . . Crushed . | . . . . . . . . . . Highest Temperature 986 | 84 115 169 . . 288 616 138 382 986 Average Temperature 138 | 44 33 35 . . 146 152 46 128 391 Received Heat Transfer 1909 | 24 363 306 . . . 333 . 18 865 Effects 59 | . . . . . . 19 . 1 39 Shutdowns 6 | . . . . . . 1 . . 5 Energy Bleed 3 | . . . . . . 1 . . 2 Interference 4 | . . . . . . . . . 4 Matter Decay 8 | . . . . . . . . 1 7 Short Circuit 5 | . . . . . . 1 . . 4 Damage (minor) 8 | . . . . . . 6 . . 2 Damage (major) 21 | . . . . . . 10 . . 11 Damage (core) 4 | . . . . . . . . . 4 Siege Activations . | . . . . . . . . . . Robots Corrupted . | . . . . . . . . . . Combat Hostiles . | . . . . . . . . . . Parts Fried 8 | . 1 . . . . 7 . . . Impact Corruptions . | . . . . . . . . . . Robots Melted 1 | 1 . . . . . . . . . Combat Hostiles 1 | 1 . . . . . . . . . Parts Melted 4 | . 1 2 . . . . . 1 . Heat Transferred 3461 | 296 942 706 . . 185 . 111 296 925 Parts Sabotaged . | . . . . . . . . . . Parts Stolen . | . . . . . . . . . . Parts Stripped . | . . . . . . . . . . Power Chain Reactions . | . . . . . . . . . . Alert | -11 -10 -9 -9 -9 -8 -8 -7 -6 -6 ------- Run | Yrd Mat Mat Min Exi Min Mat Fac Fac Ext Peak Influence 245 | 20 234 130 . . 105 245 122 114 141 Initial 32 | . 11 32 . . . . 17 . 22 Average 39 | 1 70 15 . . 43 86 52 57 33 Maximum Alert Level 1 | . 1 . . . . 1 . . . Low Security (%) 97 | 100 86 100 100 . 100 94 100 100 100 Level 1 2 | . 13 . . . . 5 . . . Level 2 . | . . . . . . . . . . Level 3 . | . . . . . . . . . . Level 4 . | . . . . . . . . . . Level 5 . | . . . . . . . . . . High Security . | . . . . . . . . . . Max Security . | . . . . . . . . . . Squads Dispatched 4 | . 1 . . . . 1 1 1 . Investigation 1 | . 1 . . . . . . . . Extermination 1 | . . . . . . . 1 . . Reinforcement 2 | . . . . . . 1 . 1 . Assault . | . . . . . . . . . . Garrison . | . . . . . . . . . . Intercept . | . . . . . . . . . . Searches Triggered . | . . . . . . . . . . Construction Impeded . | . . . . . . . . . . Haulers Reinforced . | . . . . . . . . . . Active Scanning Responses . | . . . . . . . . . . Cargo Convoy Interrupts . | . . . . . . . . . . Stealth | -11 -10 -9 -9 -9 -8 -8 -7 -6 -6 --------- Run | Yrd Mat Mat Min Exi Min Mat Fac Fac Ext Distress Signals 5 | . 1 1 . . . 1 . 1 1 Communications Jammed . | . . . . . . . . . . Distress Signals . | . . . . . . . . . . Times Spotted 85 | 1 19 12 . . 4 26 5 8 10 Peak Tracking Total 7 | 1 4 4 . . 4 4 2 2 7 Tactical Retreats 1 | . 1 . . . . . . . . Traps | -11 -10 -9 -9 -9 -8 -8 -7 -6 -6 ------- Run | Yrd Mat Mat Min Exi Min Mat Fac Fac Ext Traps Triggered 5 | . 2 . . . . 2 1 . . Indirectly . | . . . . . . . . . . Trap Hack Attempts . | . . . . . . . . . . Triggered . | . . . . . . . . . . Disarmed 6 | . . . . . . . . 6 . Reprogrammed . | . . . . . . . . . . Reused . | . . . . . . . . . . Traps Extracted . | . . . . . . . . . . Installed . | . . . . . . . . . . Triggered . | . . . . . . . . . . Machines | -11 -10 -9 -9 -9 -8 -8 -7 -6 -6 ---------- Run | Yrd Mat Mat Min Exi Min Mat Fac Fac Ext Machines Disabled 1 | . 1 . . . . . . . . Max in Single Turn 1 | . 1 . . . . . . . . Garrison Access 2 | . . . . . . 1 1 . . Machines Repaired . | . . . . . . . . . . Machines Dismantled . | . . . . . . . . . . Machines Sabotaged . | . . . . . . . . . . Overloaded Fab Kills . | . . . . . . . . . . Hacking | -11 -10 -9 -9 -9 -8 -8 -7 -6 -6 --------- Run | Yrd Mat Mat Min Exi Min Mat Fac Fac Ext Machines Accessed 20 | . 2 4 1 . . 9 2 2 . Terminals 14 | . 1 3 . . . 7 1 2 . Fabricators . | . . . . . . . . . . Repair Stations 1 | . 1 . . . . . . . . Recycling Units . | . . . . . . . . . . Scanalyzers 2 | . . 1 . . . 1 . . . Garrison Access 2 | . . . . . . 1 1 . . Total Hacks 48 | . 4 11 1 . . 25 5 2 . Successful 36 | . 4 8 1 . . 20 2 1 . Failed 12 | . . 3 . . . 5 3 1 . Catastrophic . | . . . . . . . . . . Database Lockouts . | . . . . . . . . . . Manual 3 | . 2 . . . 1 . . . . Terminals 37 | . 2 7 . . . 22 4 2 . Fabricators . | . . . . . . . . . . Repair Stations 2 | . 2 . . . . . . . . Recycling Units . | . . . . . . . . . . Scanalyzers 6 | . . 4 . . . 2 . . . Garrison Access 2 | . . . . . . 1 1 . . Terminal Hacks 26 | . 2 4 1 . . 17 1 1 . Record 9 | . 1 . . . . 7 1 . . Prototype ID Bank 2 | . . 1 . . . 1 . . . Open Door 1 | . . . 1 . . . . . . Terminal Index 1 | . . . . . . 1 . . . Alert Level 3 | . 1 1 . . . 1 . . . Locate Traps 1 | . . . . . . 1 . . . Disarm Traps 1 | . . . . . . . . 1 . Dispatch Records 1 | . . . . . . 1 . . . Maintenance Status 1 | . . . . . . 1 . . . Security Status 1 | . . . . . . 1 . . . Surveillance Status 1 | . . 1 . . . . . . . Reinforcement Status 1 | . . 1 . . . . . . . Zone Layout 3 | . . . . . . 3 . . . Fabricator Hacks . | . . . . . . . . . . Repair Station Hacks 2 | . 2 . . . . . . . . Scan Component 1 | . 1 . . . . . . . . Repair 1 | . 1 . . . . . . . . Recycling Unit Hacks . | . . . . . . . . . . Scanalyzer 6 | . . 4 . . . 2 . . . Insert Component 3 | . . 2 . . . 1 . . . Analyze 3 | . . 2 . . . 1 . . . Garrison Access Hacks 2 | . . . . . . 1 1 . . Seal Access 2 | . . . . . . 1 1 . . Unauthorized Hacks . | . . . . . . . . . . Terminals . | . . . . . . . . . . Fabricators . | . . . . . . . . . . Repair Stations . | . . . . . . . . . . Recycling Units . | . . . . . . . . . . Scanalyzers . | . . . . . . . . . . Garrison Access . | . . . . . . . . . . Data Cores Recovered . | . . . . . . . . . . Used . | . . . . . . . . . . Hacking Detections 15 | . 3 3 . . . 7 1 1 . Full Trace Events . | . . . . . . . . . . Feedback Events . | . . . . . . . . . . Feedback Blocked . | . . . . . . . . . . Robot Schematics Acquired . | . . . . . . . . . . Robots Built . | . . . . . . . . . . Authchips . | . . . . . . . . . . Time . | . . . . . . . . . . Total Robot Build Rating . | . . . . . . . . . . Part Schematics Acquired 3 | . . 2 . . . 1 . . . Parts Built . | . . . . . . . . . . Authchips . | . . . . . . . . . . Time . | . . . . . . . . . . Total Part Build Rating . | . . . . . . . . . . Parts Repaired 1 | . 1 . . . . . . . . Time 26 | . 26 . . . . . . . . Parts Recycled . | . . . . . . . . . . Recycled Matter . | . . . . . . . . . . Retrieved Matter . | . . . . . . . . . . Retrieved Components . | . . . . . . . . . . Parts Scanalyzed 3 | . . 2 . . . 1 . . . Part Schematics Acquired 3 | . . 2 . . . 1 . . . Parts Damaged . | . . . . . . . . . . Bothacking | -11 -10 -9 -9 -9 -8 -8 -7 -6 -6 ------------ Run | Yrd Mat Mat Min Exi Min Mat Fac Fac Ext Used RIF Installer . | . . . . . . . . . . Robots Hacked . | . . . . . . . . . . Non-combat . | . . . . . . . . . . Combat . | . . . . . . . . . . Robot Hacks Applied . | . . . . . . . . . . Relay Couplers Released . | . . . . . . . . . . Fabnet Peak Effective % . | . . . . . . . . . . Robots Rewired . | . . . . . . . . . . Allies Hacked . | . . . . . . . . . . Hacks Repelled . | . . . . . . . . . . Allies | -11 -10 -9 -9 -9 -8 -8 -7 -6 -6 -------- Run | Yrd Mat Mat Min Exi Min Mat Fac Fac Ext Total Allies . | . . . . . . . . . . Largest Group . | . . . . . . . . . . Highest-Rated Group . | . . . . . . . . . . Highest-Rated Ally . | . . . . . . . . . . Total Orders . | . . . . . . . . . . Ally Attacks . | . . . . . . . . . . Total Damage . | . . . . . . . . . . Kills . | . . . . . . . . . . Allies Corrupted . | . . . . . . . . . . Allies Melted . | . . . . . . . . . . Intel | -11 -10 -9 -9 -9 -8 -8 -7 -6 -6 ------- Run | Yrd Mat Mat Min Exi Min Mat Fac Fac Ext Robot Analysis Total . | . . . . . . . . . . Derelict Logs Recovered 2 | . . . 2 . . . . . . Drone Launches . | . . . . . . . . . . Drone Recoveries . | . . . . . . . . . . Exploration | -11 -10 -9 -9 -9 -8 -8 -7 -6 -6 ------------- Run | Yrd Mat Mat Min Exi Min Mat Fac Fac Ext Turns Passed 10669 | 129 1111 4718 641 223 506 1859 501 680 301 Spaces Moved 4876 | 103 682 1156 453 165 337 1085 378 397 120 Core 36 | 27 . 9 . . . . . . . Treads 5 | . . 5 . . . . . . . Legs 687 | 76 145 178 . . . . . 177 111 Wheels 3867 | . 537 683 453 165 337 1085 378 220 9 Hover . | . . . . . . . . . . Flight 281 | . . 281 . . . . . . . Fastest Speed 50 | 50 120 135 135 135 135 135 120 120 90 Average Speed 197 | 101 136 380 135 135 135 149 120 151 184 Slowest Speed 1875 | 120 400 1875 135 135 135 150 120 190 190 Overloaded Moves . | . . . . . . . . . . Propulsion Burnouts . | . . . . . . . . . . Robots Hopped . | . . . . . . . . . . Cave-ins Triggered . | . . . . . . . . . . Exploration Rate (%) 42 | 8 80 41 83 38 63 68 9 11 19 Regions Visited 9 Branch Regions 4 Pre-discovered Areas . | . . . . . . . . . . Known Exits Taken 5 | . 1 1 . . . 1 1 1 . Unknown Exits Taken 4 | 1 . . 1 1 1 . . . . Scrap Searched 2 | . . . 1 . 1 . . . . Spaces Dug . | . . . . . . . . . . Terrain Destroyed 73 | . 40 . . . . 25 . 2 6 Melee . | . . . . . . . . . . Projectile 2 | . . . . . . . . 2 . AOE 71 | . 40 . . . . 25 . . 6 Terrain Rammed . | . . . . . . . . . . Walls Destroyed . | . . . . . . . . . . Machines Disabled . | . . . . . . . . . . Actions | -11 -10 -9 -9 -9 -8 -8 -7 -6 -6 --------- Run | Yrd Mat Mat Min Exi Min Mat Fac Fac Ext Total 5559 | 121 783 1404 483 165 376 1231 407 433 156 Wait 201 | . . 101 27 1 32 34 1 3 2 Move 4867 | 102 681 1155 452 164 336 1084 377 396 120 Hop . | . . . . . . . . . . Pick Up 105 | 8 26 31 1 . 2 24 6 7 . Fast Attach 2 | . . . . . . . . 1 1 Attach 66 | 5 11 23 1 . . 14 3 2 7 Detach 21 | . 4 12 1 . . 4 . . . Swap 32 | . 4 11 . . . 9 3 3 2 Drop 54 | . 5 17 1 . . 19 6 2 4 Fire 211 | 6 52 54 . . 6 43 11 19 20 Melee . | . . . . . . . . . . Ram . | . . . . . . . . . . Kick . | . . . . . . . . . . Crush . | . . . . . . . . . . Escape Stasis . | . . . . . . . . . . Rewire . | . . . . . . . . . . Trap . | . . . . . . . . . . Miscellaneous . | . . . . . . . . . . Route ------- -11/Scrapyard -10/Materials (discovered 3 exits: *Mat x2 / [*Min]) -9/Materials -9/Mines (discovered 3 exits: *Mat / [*Exi] / *Zio) -9/Exiles -8/Mines (discovered 2 exits: *Mat x2) -8/Materials (discovered 2 exits: *Fac x2) -7/Factory (discovered 4 exits: *Fac / *Sto / Low x2) -6/Factory -6/Extension History --------- Turn | Location | Event 2 | -11/Scrapyard | Met Revision 17 105 | -11/Scrapyard | Discovered new exit (range 8) 130 | -11/Scrapyard | Entered Materials 319 | -10/Materials | Build established: Mutant 466 | -10/Materials | Discovered new exit (range 16) 602 | -10/Materials | Discovered new exit (range 11) 616 | -10/Materials | Identified exit to Materials 878 | -10/Materials | Core integrity fell below 50% 889 | -10/Materials | Lost 3 parts (3w) 927 | -10/Materials | Discovered exit to Materials (range 15) 1038 | -10/Materials | Repaired Lgt. Ion Engine? 1241 | -10/Materials | Entered another Materials area 1241 | -9/Materials | Evolved 2 slots: Power x1, Utility x1 1728 | -9/Materials | Build established: Scavenger-Mutant 2427 | -9/Materials | Build established: Mutant 4306 | -9/Materials | Discovered new exit (range 16) 4766 | -9/Materials | Core integrity fell below 50% 4790 | -9/Materials | Lost 4 parts (1p2n1w) 5452 | -9/Materials | Identified exit to Mines 5959 | -9/Materials | Entered Mines 6011 | -9/Mines | Met a Derelict bent on vengeance 6033 | -9/Mines | A Derelict revealed a hidden shortcut to a safe place 6043 | -9/Mines | Identified exit to Zion 6052 | -9/Mines | YI-UF0 nonchalantly dropped a Grenade Launcher on the ground 6212 | -9/Mines | Deemed a non-threat by the Exiles lab entrance 6212 | -9/Mines | Discovered new exit (range 5) 6354 | -9/Mines | Met a Derelict who couldn't figure out how to use a Trap Extractor 6408 | -9/Mines | Discovered new exit (range 6) 6600 | -9/Mines | Entered Exiles 6622 | -9/Exiles | Discovered new exit (range 15) 6640 | -9/Exiles | Met 8R-AWN 6663 | -9/Exiles | Met EX-HEX 6716 | -9/Exiles | Met EX-DEC 6823 | -9/Exiles | Entered Mines 6898 | -8/Mines | Discovered new exit (range 15) 7167 | -8/Mines | Discovered new exit (range 10) 7329 | -8/Mines | Entered Materials 7329 | -8/Materials | Evolved 2 slots: Utility x1, Weapon x1 7880 | -8/Materials | Build established: Tank 8232 | -8/Materials | Discovered new exit (range 15) 9137 | -8/Materials | Discovered new exit (range 16) 9185 | -8/Materials | Identified exit to Factory 9188 | -8/Materials | Entered Factory 9188 | -7/Factory | Evolved 2 slots: Propulsion x1, Utility x1 9189 | -7/Factory | Identified exit to Lower Caves 9301 | -7/Factory | Discovered new exit (range 16) 9308 | -7/Factory | Build established: Gunner 9371 | -7/Factory | Discovered new exit (range 16) 9396 | -7/Factory | Identified exit to Storage 9688 | -7/Factory | Identified exit to Factory 9689 | -7/Factory | Entered another Factory area 9689 | -6/Factory | Evolved 2 slots: Propulsion x1, Weapon x1 10341 | -6/Factory | Discovered new exit (range 16) 10367 | -6/Factory | Identified exit to Extension 10369 | -6/Factory | Entered Extension 10535 | -6/Extension | Spotted B-75 Beast 10588 | -6/Extension | Destroyed B-75 Beast 10618 | -6/Extension | Spotted B-75 Beast 10649 | -6/Extension | Core integrity fell below 50% 10668 | -6/Extension | Core integrity fell below 20% 10670 | -6/Extension | Destroyed by B-75 Beast with Magnetic Acceleration Cannon Last Messages --------------- 10659_ Overheating: Arm. Wheel damaged (-17). 10659_ Overheating: Deuterium Engine damaged (-2). 10659_ Y-54 Guardian destroyed. 10660_ Overheating: Particle Cannon damaged (-8). 10660_ Deuterium Engine destroyed. 10660_ Particle Cannon destroyed. 10660_ Hpw. Shotgun destroyed. 10663_ Overheating: Matter decay (-20). 10664_ Overheating: Matter decay (-8). 10664_ Huge Storage Unit destroyed. 10664_ Acquired Com. Wheel. 10667_ Overheating: Matter decay (-13). 10667_ Com. Wheel destroyed. 10669_ Overheating: Core damaged (-144). 10670_ Arm. Wheel broken. 10670_ Overheating: Short circuit. [Achievement: First Step to Greatness] [Achievement: 5k Club] Map ----- +----------------------------------------------------+ | ?????????????????????????????????????????????????? | | ?????????????????????????????????????????????????? | | ?????????????????????????????????????????????????? | | ?????????????????????????????????????????????????? | | ?????????????????????????????????????????????????? | | ?????????????????????????????????????????????????? | | ?????????????????????????????????????????????????? | | ?????????????????????????????????????????????????? | | ?????????????????????????????????????????????????? | | ?????????????????????????????????????????????????? | | ?????????????????????????????????????????????????? | | ?????????????????????????????????????????????????? | | ?????????????????????????????????????????????????? | | ?????????????????????????????????????????????????? | | ?????????????????????????????????????????????????? | | ?????????????????????????????????????????????????? | | ?????????????????????????????????????????????????? | | ?????????????????????????????????????????????????? | | ?????????????????????????????????????????????????? | | ?????????????????????????????????????????????????? | | ?????????????????????????????????????????????????? | | ?????????????????????????????????????????????????? | | ?????????????????????????????????????????? ????? | | ???????????????????????#######?????????? ???? | | ###################################### ???? | | k% @!! %R =% R ??? | | k t%==! !% % % ??? | | u % Ru!%!! = %%*u*=% %= ??? | | [%==/!%= BB%[= ??? | | k R % !%!! *% BBu] % ??? | | ####################;############### #= ???? | | ?????????????????? ???????????????? #?? ???? | | ???????????????? #?????????????????????????????? | | ???????????????# ???????????????????????????????? | | ???????????????##????????????????????????????????? | | ?????????????????????????????????????????????????? | | ?????????????????????????????????????????????????? | | ?????????????????????????????????????????????????? | | | | | | | | | | | | | | | | | | | | | | | | | +----------------------------------------------------+ Best States ------------- Heat Dissipation 45 Energy Generation 25 Energy Capacity 465 Matter Stores 308 Matter Capacity 500 Sight Range 18 Terrain Scan Density 10 Additional Mass Support 9 Armor Coverage 225 Resistance: KI 20 Resistance: TH 20 Resistance: EX 20 Resistance: EM 20 Resistance: I 20 Resistance: S 20 Resistance: P 20 Core Shielding 20 Evasion (%) 55 Targeting Accuracy 6 Recoil Reduction 1 Offensive Hacking 10 Item Schematics ----------------- Core Shielding | -9/Materials | Scanalyzed Cld. Ion Engine | -9/Materials | Scanalyzed Lgt. Nuclear Core | -8/Materials | Scanalyzed Robot Schematics ------------------ None Fabricated ------------ Nothing Alien Tech Used ----------------- None Achievements -------------- 5k Club First Step to Greatness It's Just You Made in Tau Ceti IV Novice Programmer Part-time Mechanic Safety First Serviceable Loadout Storm Trooper Tourist Uninvited Guest Challenges ------------ None Game ------ Seed VisualCryofiberMachine Manual? 0 Play Time 02:13:02 Cumulative 2.2 hours Start 2024.08.06 @ 07:52:58 End 2024.08.10 @ 11:11:48 Sessions 1 Manual Loads 0 Difficulty Adventurer Special Mode None Game No. 3 Rogue 0 Adventurer 3 Explorer 0 Win Type - Total 0 Types 0/0/0/0/0/0/0/0/0 Lore% 0 Gallery% 4 Achievement% 4 Wizard Run 0 Options --------- Layout 1 ASCII 0 Keyboard 0 Movement Mouse Keybinds 0 Fullscreen 1 Font 24/Smallcaps Map View 50x35 Zoom Use 0% Tactical HUD 1 Map Filters NONE Filters NONE Steam 1 RUN: 6fe48b45-7047-471d-ac91-161ac5a4a782